Cogmind - Beta 15 @@@ ROGUE MODE // 2025.08.29 @ 20:48:19 Player: the Result: Destroyed by D-53 Grenadier with Mini Grenade Launcher Performance ------------- Evolutions (0) 0 Regions Visited (2) 400 Robots Destroyed (27) 135 Value Destroyed (302) 302 Prototype IDs (2) 40 Alien Tech Used (0) 0 Bonus (0) 0 TOTAL SCORE: 877 Bonus ------- None Cogmind --------- Core Integrity 0/250 Matter 298/300 Energy 100/100 System Corruption 1% Temperature Cool (9) Movement Rolling (130) Ox2 Location -10/Mines Parts ------- > --- POWER (1) -------- (None) > --- PROPULSION (2) --- Compact Wheel (fused) > --- UTILITY (2) ------ High-capacity Storage Unit > --- WEAPON (2) ------- Assault Rifle > --- INVENTORY (20) --- Improved Ion Engine Improved Ion Engine Light Treads Light Treads Light Treads Improved Heat Sink High-capacity Matter Pod (200) Seismic Detector Seismic Detector Melee Analysis Suite Actuator Array Hacking Suite Medium Laser Rocket Launcher Rocket Launcher Datajack Mining Laser Mace Mace Katana Peak State ------------ > --- POWER ------------ Improved Ion Engine > --- PROPULSION ------- Compact Wheel Compact Wheel > --- UTILITY ---------- High-capacity Storage Unit Seismic Detector > --- WEAPON ----------- Assault Rifle Light Assault Rifle > --- INVENTORY -------- Improved Ion Engine Improved Ion Engine Light Treads Light Treads Heat Sink Heat Sink Improved Heat Sink Seismic Detector ECM Suite Light Armor Plating Tractor Beam Medium Laser Rocket Launcher Rocket Launcher Rocket Launcher Datajack Mining Laser Mace Mace Mace [Rating: 11] Favorites ----------- Power Improved Ion Engine Engine Improved Ion Engine Propulsion Compact Wheel Wheel Compact Wheel Utility Seismic Detector Device Seismic Detector Storage High-capacity Storage Unit Protection Light Armor Plating Weapon Assault Rifle Ballistic Gun Assault Rifle Launcher Rocket Launcher Special Weapon Mining Laser Build | -11 -10 -10 ------- Run | Yrd Mat Min Slots Evolved . | . . . Power . | . . . Propulsion . | . . . Utility . | . . . Weapon . | . . . Parts Attached 18 | 8 10 . Power 3 | 1 2 . Engine 3 | 1 2 . Core . | . . . Reactor . | . . . Propulsion 3 | 2 1 . Treads . | . . . Leg . | . . . Wheel 3 | 2 1 . Hover . | . . . Flight . | . . . Utility 7 | 3 4 . Device 3 | 2 1 . Storage 2 | 1 1 . Processor . | . . . Hackware . | . . . Protection 2 | . 2 . Artifact . | . . . Weapon 5 | 2 3 . Energy Gun . | . . . Energy Cannon . | . . . Ballistic Gun 2 | 2 . . Ballistic Cannon . | . . . Launcher 2 | . 2 . Special Weapon 1 | . 1 . Impact Weapon . | . . . Slashing Weapon . | . . . Piercing Weapon . | . . . Special Melee Weapon . | . . . Unidentified Prototypes . | . . . Parts Lost 5 | . 1 4 Power 1 | . . 1 Propulsion 2 | . 1 1 Utility 1 | . . 1 Weapon 1 | . . 1 Highest Loss Streak 4 | . 1 4 To Critical Strikes . | . . . Average Backups 14 | 5 13 19 Power 1 | . 1 2 Propulsion 2 | 3 2 3 Utility 4 | . 4 5 Weapon 4 | . 3 6 Tool/Special . | . . . Unused Backups 29 | 1 8 20 Power 4 | . 1 3 Propulsion 6 | . 2 4 Utility 9 | . 3 6 Weapon 9 | 1 2 6 Tool/Special 1 | . . 1 Average Slot Usage (%) 99 | . 99 100 Engine 14 | . 14 14 Wheel 27 | . 27 28 Device 12 | . 12 14 Storage 14 | . 14 14 Protection 1 | . 1 . Ballistic Gun 24 | . 25 22 Launcher 1 | . . 4 Special Weapon 2 | . 2 1 Peak Build Rating 11 | 7 11 11 Average Rating 9 | 6 8 10 On Entrance 6 | . 7 11 Naked Turns . | . . . Heaviest Build 56 | 12 56 54 Greatest Support 32 | 32 32 32 Greatest Overweight (x) 3 | . 3 1 Average Overweight (x) . | . . 1 Largest Inventory Capacity 20 | 8 20 20 Average Capacity 17 | 7 17 20 Most Carried 20 | 8 20 20 Average Carried 14 | 5 13 19 Final Capacity 20 | 8 20 20 Final Carried 20 | 8 20 20 Class Distribution -------------------- 100% | Mutant Dominant Class ---------------- Mutant | -10/Materials Mutant | -10/Mines Resources | -11 -10 -10 ----------- Run | Yrd Mat Min Matter Collected 1055 | 348 476 231 Remotely . | . . . Salvage Created 715 | 212 414 89 Parts 59 | 16 38 5 Haulers Intercepted 2 | . 2 . Recyclers Shooed 3 | 1 2 . Parts Field Recycled . | . . . Retrieved Matter . | . . . Parts Self-Destructed . | . . . Prevented . | . . . Kills | -11 -10 -10 ------- Run | Yrd Mat Min Combat Hostiles Destroyed 7 | . 5 2 Guns 6 | . 5 1 AOE 1 | . . 1 Classes Destroyed 7 | 3 4 . Worker 7 | 2 3 2 Builder 3 | . 3 . Tunneler 6 | 4 2 . Hauler 2 | . 2 . Recycler 2 | 1 1 . Swarmer 3 | . 3 . Grunt 4 | . 2 2 Best Kill Streak 5 | 5 3 2 Combat Bots Only 2 | . 2 2 Max Kills in Single Turn 2 | 1 2 1 Gunslinging . | . . . Exploded 1 | . . 1 Melee . | . . . Uniques/NPCs Destroyed . | . . . Combat | -11 -10 -10 -------- Run | Yrd Mat Min Hostile Shots Fired 42 | . 27 15 Missed 6 | . 5 1 Hits 36 | . 22 14 Projectile 36 | . 22 14 AOE 11 | . . 11 Damage Taken 734 | . 253 481 Core 261 | . 72 189 Absorbed by Shields . | . . . Core Remaining (%) 100 | 100 . . Volleys Fired 97 | 19 66 12 Largest 2 | 2 2 2 Hottest 120 | 40 120 100 Shots Fired 171 | 38 113 20 Gun 147 | 38 93 16 Cannon . | . . . Launcher 4 | . 2 2 Special 20 | . 18 2 Kinetic 147 | 38 93 16 Thermal 20 | . 18 2 Explosive 4 | . 2 2 Electromagnetic . | . . . Robot Hit Streak 10 | 6 10 6 Robot Miss Streak 3 | 2 3 3 Penetration Max . | . . . Secondary Targets . | . . . Shots Hit Robots 90 | 22 57 11 Core Hits 41 | 9 26 6 Critical Kills 1 | . 1 . Critical Parts Destroyed 1 | . 1 . Critical Strikes 2 | . 2 . Destroy 2 | . 2 . Melee Attacks . | . . . Impact . | . . . Slashing . | . . . Piercing . | . . . Sneak Attacks . | . . . Combat Hostiles . | . . . Follow-up Attacks . | . . . Damage Inflicted 1210 | 213 736 261 Guns 904 | 213 605 86 Cannons . | . . . Explosions 306 | . 131 175 Melee . | . . . Ramming . | . . . Kinetic 904 | 213 605 86 Thermal . | . . . Explosive 306 | . 131 175 Electromagnetic . | . . . Impact . | . . . Slashing . | . . . Piercing . | . . . Highest Corruption 1 | . 1 1 Average Corruption 1 | . 1 1 Corruption Purged . | . . . Corruption Blocked . | . . . Effects 12 | . 5 7 Message Errors 2 | . . 2 Matter Fused 1 | . 1 . Energy Discharges 3 | . 2 1 Parts Rejected 1 | . 1 . Parts Fused 1 | . . 1 Data Loss (minor) 2 | . . 2 Data Loss (major) 2 | . 1 1 Overload Shots . | . . . Overflow Damage . | . . . Projectiles . | . . . Explosions . | . . . Melee . | . . . Knockbacks . | . . . Impact . | . . . Kinetic . | . . . Secondary . | . . . Self-Inflicted Damage . | . . . Shots . | . . . Rammed . | . . . Targets Rammed . | . . . Kicked . | . . . Crushed . | . . . Highest Temperature 120 | . 120 48 Average Temperature 21 | . 23 10 Received Heat Transfer 135 | . 111 24 Siege Activations . | . . . Martial Activations . | . . . Shielding Activations . | . . . Robots Disrupted . | . . . Combat Hostiles . | . . . Robots Corrupted . | . . . Combat Hostiles . | . . . Parts Fried . | . . . Impact Corruptions . | . . . Robots Melted . | . . . Combat Hostiles . | . . . Parts Melted . | . . . Heat Transferred . | . . . Parts Sabotaged . | . . . Parts Stolen . | . . . Parts Stripped . | . . . Power Chain Reactions . | . . . Alert | -11 -10 -10 ------- Run | Yrd Mat Min Maximum Alert Level . | . . . Low Security (%) 100 | 100 100 100 Level 1 . | . . . Level 2 . | . . . Level 3 . | . . . Level 4 . | . . . Level 5 . | . . . High Security . | . . . Max Security . | . . . Peak Influence 110 | 10 110 55 Initial 14 | . . 14 Average 19 | 2 30 5 Influence Increases 402 | 35 300 67 Destroy 0b10 Robot/C 140 | . 100 40 Destroy 0b10 Robot/NC 100 | 35 55 10 Destroy Leader 34 | . 24 10 Successful Hack 35 | . 35 . Disable Machine 45 | . 45 . Destroy Structure 33 | . 26 7 Lose Combat Pursuer 15 | . 15 . Influence Decreases 402 | 35 262 105 Entered New Map 24 | . . 24 Time Decay 332 | 35 216 81 Purge Threat 46 | . 46 . Squads Dispatched 1 | . . 1 Investigation 1 | . . 1 Extermination . | . . . Reinforcement . | . . . Assault . | . . . Garrison . | . . . Intercept . | . . . Searches Triggered . | . . . Construction Impeded . | . . . Haulers Reinforced . | . . . Active Scanning Responses . | . . . Cargo Convoy Interrupts . | . . . Stealth | -11 -10 -10 --------- Run | Yrd Mat Min Distress Signals 1 | . 1 . Communications Jammed . | . . . Distress Signals . | . . . Times Spotted 18 | . 12 6 Peak Tracking Total 4 | . 4 4 Tactical Retreats 1 | . 1 . Traps | -11 -10 -10 ------- Run | Yrd Mat Min Traps Triggered 2 | . 2 . Indirectly . | . . . Trap Hack Attempts . | . . . Triggered . | . . . Disarmed . | . . . Reprogrammed . | . . . Reused . | . . . Traps Extracted . | . . . Installed . | . . . Triggered . | . . . Machines | -11 -10 -10 ---------- Run | Yrd Mat Min Machines Disabled 3 | . 3 . Max in Single Turn 2 | . 2 . Machines Repaired . | . . . Machines Dismantled . | . . . Machines Sabotaged . | . . . Overloaded Fab Kills . | . . . Hacking | -11 -10 -10 --------- Run | Yrd Mat Min Machines Accessed 8 | . 7 1 Terminals 7 | . 7 . Fabricators . | . . . Repair Stations . | . . . Recycling Units . | . . . Scanalyzers . | . . . Garrison Access . | . . . Total Hacks 27 | . 26 1 Successful 15 | . 14 1 Failed 11 | . 11 . Catastrophic 1 | . 1 . Database Lockouts 1 | . 1 . Manual 12 | . 12 . Terminals 26 | . 26 . Fabricators . | . . . Repair Stations . | . . . Recycling Units . | . . . Scanalyzers . | . . . Garrison Access . | . . . Terminal Hacks 11 | . 10 1 Part Schematic 1 | . 1 . Robot Analysis 2 | . 2 . Prototype ID Bank 1 | . 1 . Open Door 1 | . . 1 Terminal Index 1 | . 1 . Unreport Threat 1 | . 1 . Locate Traps 1 | . 1 . Hauler Manifests 1 | . 1 . Zone Layout 2 | . 2 . Fabricator Hacks . | . . . Repair Station Hacks . | . . . Recycling Unit Hacks . | . . . Scanalyzer . | . . . Garrison Access Hacks . | . . . Unauthorized Hacks 4 | . 4 . Terminals 4 | . 4 . Botnet 3 | . 3 . Operators 1 | . 1 . Fabricators . | . . . Repair Stations . | . . . Recycling Units . | . . . Scanalyzers . | . . . Garrison Access . | . . . Data Cores Recovered . | . . . Used . | . . . Hacking Detections 7 | . 7 . Full Trace Events . | . . . Feedback Events . | . . . Feedback Blocked . | . . . Robot Schematics Acquired . | . . . Robots Built . | . . . Authchips . | . . . Time . | . . . Total Robot Build Rating . | . . . Part Schematics Acquired 1 | . 1 . Parts Built . | . . . Authchips . | . . . Time . | . . . Total Part Build Rating . | . . . Parts Repaired . | . . . Time . | . . . Parts Recycled . | . . . Recycled Matter . | . . . Retrieved Matter . | . . . Retrieved Components . | . . . Parts Scanalyzed . | . . . Part Schematics Acquired . | . . . Parts Damaged . | . . . Bothacking | -11 -10 -10 ------------ Run | Yrd Mat Min Used RIF Installer . | . . . Robots Hacked . | . . . Non-combat . | . . . Combat . | . . . Robot Hacks Applied . | . . . Relay Couplers Released . | . . . Fabnet Peak Effective % . | . . . Robots Rewired . | . . . Allies Hacked . | . . . Hacks Repelled . | . . . Allies | -11 -10 -10 -------- Run | Yrd Mat Min Total Allies . | . . . Largest Group . | . . . Highest-Rated Group . | . . . Highest-Rated Ally . | . . . Total Orders . | . . . Ally Attacks . | . . . Total Damage . | . . . Kills . | . . . Allies Corrupted . | . . . Allies Melted . | . . . Intel | -11 -10 -10 ------- Run | Yrd Mat Min Active Infowar (turns) 1557 | 98 907 552 Seismic 1557 | 98 907 552 Robot Analysis Total 2 | . 2 . Derelict Logs Recovered . | . . . Drone Launches . | . . . Drone Recoveries . | . . . Exploration | -11 -10 -10 ------------- Run | Yrd Mat Min Turns Passed 1748 | 155 1032 561 Spaces Moved 1037 | 81 636 320 Core 1 | 1 . . Treads . | . . . Legs . | . . . Wheels 1036 | 80 636 320 Hover . | . . . Flight . | . . . Fastest Speed 50 | 50 100 115 Average Speed 111 | 99 111 115 Slowest Speed 145 | 100 145 115 Overloaded Moves . | . . . Propulsion Burnouts . | . . . Robots Hopped . | . . . Potential Cave-ins . | . . . Cave-ins Triggered . | . . . Exploration Rate (%) 54 | 5 97 62 Regions Visited 2 Branch Regions 1 Pre-discovered Areas . | . . . Known Exits Taken . | . . . Unknown Exits Taken 2 | 1 1 . Scrap Searched . | . . . Spaces Dug 10 | . 10 . Terrain Destroyed 35 | . 28 7 Melee . | . . . Projectile 19 | . 17 2 AOE 16 | . 11 5 Terrain Rammed . | . . . Walls Destroyed . | . . . Machines Disabled . | . . . Actions | -11 -10 -10 --------- Run | Yrd Mat Min Total 1423 | 117 817 489 Wait 200 | . 58 142 Move 1035 | 80 635 320 Hop . | . . . Pick Up 38 | 9 25 4 Fast Attach 11 | 7 4 . Attach 1 | . 1 . Detach . | . . . Swap 22 | 1 14 7 Drop 19 | 1 14 4 Fire 97 | 19 66 12 Melee . | . . . Ram . | . . . Kick . | . . . Crush . | . . . Escape Stasis . | . . . Rewire . | . . . Trap . | . . . Miscellaneous . | . . . Route ------- -11/Scrapyard -10/Materials (discovered 6 exits: [*Mat x3] / *Min x2 / [*Sub]) -10/Mines (discovered 3 exits: [*Mat x2] / [*Sub]) History --------- Turn | Location | Event 15 | -11/Scrapyard | Discovered new exit (range 15) 156 | -11/Scrapyard | Entered Materials 316 | -10/Materials | Build established: Mutant 323 | -10/Materials | Discovered new exit (range 3) 469 | -10/Materials | Central database locked down 469 | -10/Materials | Discovered new exit (range 19) 469 | -10/Materials | Discovered new exit (range 15) 486 | -10/Materials | Discovered new exit (range 8) 585 | -10/Materials | Discovered new exit (range 16) 825 | -10/Materials | Discovered new exit (range 3) 1188 | -10/Materials | Entered Mines 1189 | -10/Mines | Assembled infested the area 1543 | -10/Mines | Discovered new exit (range 6) 1578 | -10/Mines | Met a Derelict shopkeep closing up shop 1615 | -10/Mines | Discovered new exit (range 9) 1698 | -10/Mines | Discovered new exit (range 14) 1748 | -10/Mines | Core integrity fell below 50% 1749 | -10/Mines | Destroyed by D-53 Grenadier with Mini Grenade Launcher Last Messages --------------- 01590_ Dropped Imp. Ion Engine. 01592_ Acquired Hacking Suite. 01594_ Dropped Lgt. Treads. 01595_ Acquired Melee Analysis Suite. 01609_ K-01 Serf collects debris. 01612_ Acquired 49 matter. 01613_ K-01 Serf collects debris. 01614_ IUXQC#SU